Workbook

Sheet OTWH 200 EV
A1: ciddls
G2: Chauffe-eau thermodynamique sur VMC OTWH 200 EV
O5: Version 01/2019
A6: ciddls
B8: Référence de l'étude
C14: Données
D17: Type de ventilation | F17: Hygro B
D19: Type de logement | F19: F1 (WC commun avec SbB)
D21: Type de réseau | F21: Multipiquage
J22: =IF(F21="Multipiquage","Attention : 3 piquages maximum","") -> Attention : 3 piquages maximum
C23: Pertes de charge
C26: Perte de charge à la bouche d'extraction
N27: 80 | O27: Pa
C30: =IF(F21="Pieuvre (caisson)","Perte de charge entre la bouche et le caisson","Perte de charge entre la bouche et le OTWH") -> Perte de charge entre la bouche et le OTWH | H30: =IF(OR(AND(F33="Rigide",H33=80),AND(F35="Rigide",H35=80),AND(F37="Rigide",H37=80),AND(F39="Rigide",H39=80),AND(F41="Rigide",H41=80)),"Attention : Gaine rigide Ø 80 non fourni par Oertli","") -> 
C32: Type de tronçon | F32: Type de gaine | H32: Diamètre (mm) | J32: Longueur (m) | L32: Nbr coudes
H33: =PdC!F3 -> 
H35: =PdC!F4 -> 
H37: =PdC!F5 -> 
F39: Souple | H39: =PdC!F6 -> 
H41: =PdC!F7 -> 
L43: =CONCATENATE("Tronçon le plus défavorable : ",PdC!N13) -> Tronçon le plus défavorable : 0 | N43: =IF(F21="Pieuvre (caisson)",PdC!K8,IF(F21="Multipiquage",PdC!K19,0)) -> 0 | O43: Pa
H48: =IF('OTWH 200 EV'!F21="Linéaire",1,0) -> 0
H50: =PdC!A42 -> Configuration non conforme
H53: =affichecache(H48,0,"Aide") -> 0
C58: Perte de charge entre la bouche d'extraction et le OTWH | I58: Les tés et réductions sont intégrés au calcul
C60: Type de tronçon | F60: Type de gaine | H60: Diamètre (mm) | J60: Longueur (m) | L60: Nbr coudes
C61: WC unique | E61: Tp 1 | F61: Rigide | H61: 80 | J61: 3 | L61: 1
D63: Si supérieur à 1 m | E63: Tr 1 | H63: =PdC!F26 -> 80
C65: Salle de bain | E65: Tp 2 | F65: Rigide | H65: 80 | J65: 2 | L65: 0
D67: Si supérieur à 1 m | E67: Tr 2 | F67: Souple | H67: =PdC!F28 -> 80 | J67: 3 | L67: 0
C69: Cuisine | E69: Tp 3 | F69: Rigide | H69: 160 | J69: 8 | L69: 1
D71: Si supérieur à 1 m | E71: Tr 3 | F71: Souple | H71: =PdC!F30 -> 125 | J71: 1 | L71: 0
E73: Tp 4
D75: Si supérieur à 1 m | E75: Tr 4 | H75: =PdC!F32 -> 
E77: Tp 5
D79: Si supérieur à 1 m | E79: Tr 5 | H79: =PdC!F34 -> 
L81: =CONCATENATE("Tronçon le plus défavorable : ",PdC!N13) -> Tronçon le plus défavorable : 0 | N81: =PdC!M35 -> 20.79328823 | O81: Pa
C84: Perte de charge du caisson
N85: =IF(F21="Pieuvre (caisson)",25,0) -> 0 | O85: Pa
C88: Perte de charge entre le caisson et le OTWH
C90: =IF(F21="Pieuvre (caisson)",1,0) -> 0
F91: Type de gaine | H91: Diamètre (mm) | J91: Longueur (m) | L91: Nbr coudes
F92: Rigide | H92: 160 | J92: 8 | L92: 1
C94: =affichecache(C90,0,"AmontBal") -> 0
L95: =IF(H92=160,"Réduction 125/160 à installer sur le caisson",IF(H92=125,"Réduction 125/160 à installer sur le OTWH 200 EV","")) -> Réduction 125/160 à installer sur le caisson | N95: =IF(F21="Pieuvre (caisson)",PdC!K9,0) -> 0 | O95: Pa
C98: Perte de charge entre le OTWH et la bouche d'évacuation
F101: Type de gaine | H101: Diamètre (mm) | J101: Longueur (m) | L101: Nbr coudes
H102: 160
N105: =PdC!N5 -> 0 | O105: Pa
C108: Perte de charge de la bouche d'évacuation
N109: =IFERROR(VLOOKUP(J109,Calcul!A30:B31,2,FALSE),"") ->  | O109: Pa
C112: Pertes de charges totales | H112: =PdC!A40 -> Configuration non conforme (valeur limite : 291,2 Pa) | N112: =IFERROR(IF(F21="Linéaire",N109+N105+N95+N85+N81+N27,N109+N105+N95+N85+N43+N27),"") ->  | O112: Pa
B116: Les résultats de cette feuille de calcul sont donnés à titre indicatif. La responsabilité d'Oertli ne peut en aucun cas être engagée.

Sheet Calcul (hidden)
A1: Diamètre Caisson | B1: Type Conduit | C1: Type VMC | D1: Type evac | E1: Type réseau | G1: Type de logement | I1: 6-40/90 | J1: 90
A2: 125 | B2: Souple | C2: Hygro A | D2: Chapeau toiture | E2: Linéaire | G2: =IF('OTWH 200 EV'!$F$17="Hygro B",'Hygro B'!A3,'Hygro A'!A3) -> F1 (WC commun avec SbB) | I2: 10-45/135 | J2: 135
A3: 160 | B3: Rigide | C3: Hygro B | D3: Bouche murale | E3: Multipiquage | G3: =IF('OTWH 200 EV'!$F$17="Hygro B",'Hygro B'!A4,'Hygro A'!A4) -> F1 (WC séparé) | I3: 12-45/105 | J3: 105
E4: Pieuvre (caisson) | G4: =IF('OTWH 200 EV'!$F$17="Hygro B",'Hygro B'!A5,'Hygro A'!A5) -> F2 (WC commun avec SdB) | I4: 12-45/135 | J4: 135
A5: Diamètre Linéaire | G5: =IF('OTWH 200 EV'!$F$17="Hygro B",'Hygro B'!A6,'Hygro A'!A6) -> F2 (WC séparé) | I5: 10-40 | J5: 40
A6: 80 | G6: =IF('OTWH 200 EV'!$F$17="Hygro B",'Hygro B'!A7,'Hygro A'!A7) -> F3 Optimisé (WC commun avec SdB) | I6: 5-40 | J6: 40
A7: 125 | G7: =IF('OTWH 200 EV'!$F$17="Hygro B",'Hygro B'!A8,'Hygro A'!A8) -> F3 Optimisé (WC séparé) | I7: 10-45 | J7: 45
A8: 160 | G8: =IF('OTWH 200 EV'!$F$17="Hygro B",'Hygro B'!A9,'Hygro A'!A9) -> F3 (WC commun avec SdB) | I8: 5-45 | J8: 45
G9: =IF('OTWH 200 EV'!$F$17="Hygro B",'Hygro B'!A10,'Hygro A'!A10) -> F3 (WC séparé) | I9: 10-45/45 | J9: 45
G10: =IF('OTWH 200 EV'!$F$17="Hygro B",'Hygro B'!A11,'Hygro A'!A11) -> F4 (WC commun avec SdB) | I10: 5/30 | J10: 30
A11: Cuisine | B11: =IF('OTWH 200 EV'!$F$17="Hygro A",VLOOKUP('OTWH 200 EV'!$F$19,'Hygro A'!$A$3:$I$13,4,FALSE),VLOOKUP('OTWH 200 EV'!$F$19,'Hygro B'!$A$3:$I$16,4,FALSE)) -> 6-40/90 | C11: =VLOOKUP(B11,$I$1:$J$15,2,FALSE) -> 90 | D11: =IF(C11=0,"",A11) -> Cuisine | E11: =D11 -> Cuisine | G11: =IF('OTWH 200 EV'!$F$17="Hygro B",'Hygro B'!A12,'Hygro A'!A12) -> F4 (WC séparé) | I11: Auto 30 | J11: 30
A12: Salle de bain | B12: =IF('OTWH 200 EV'!$F$17="Hygro A",VLOOKUP('OTWH 200 EV'!$F$19,'Hygro A'!$A$3:$I$13,5,FALSE),VLOOKUP('OTWH 200 EV'!$F$19,'Hygro B'!$A$3:$I$16,5,FALSE)) -> 10-40 | C12: 40 | D12: =IF(C12=0,"",A12) -> Salle de bain | E12: Salle de bain | G12: =IF('OTWH 200 EV'!$F$17="Hygro B",'Hygro B'!A13,'Hygro A'!A13) -> F5 (WC commun avec SdB) | I12: Auto 15 | J12: 15
A13: Salle de bain 2 | B13: =IF('OTWH 200 EV'!$F$17="Hygro A",VLOOKUP('OTWH 200 EV'!$F$19,'Hygro A'!$A$3:$I$13,6,FALSE),VLOOKUP('OTWH 200 EV'!$F$19,'Hygro B'!$A$3:$I$16,6,FALSE)) -> Non applicable | C13: 0 | G13: =IF('OTWH 200 EV'!$F$17="Hygro B",'Hygro B'!A14,"") -> F5 (WC séparé) | I13: 10-45/120 | J13: 120
A14: WC unique | B14: =IF('OTWH 200 EV'!$F$17="Hygro A",VLOOKUP('OTWH 200 EV'!$F$19,'Hygro A'!$A$3:$I$13,7,FALSE),VLOOKUP('OTWH 200 EV'!$F$19,'Hygro B'!$A$3:$I$16,7,FALSE)) -> Non applicable | C14: 0 | G14: =IF('OTWH 200 EV'!$F$17="Hygro B",'Hygro B'!A15,"") -> F6 et + (WC commun avec SdB)
A15: WC multiple | B15: =IF('OTWH 200 EV'!$F$17="Hygro A",VLOOKUP('OTWH 200 EV'!$F$19,'Hygro A'!$A$3:$I$13,8,FALSE),VLOOKUP('OTWH 200 EV'!$F$19,'Hygro B'!$A$3:$I$16,8,FALSE)) -> Non applicable | C15: 0 | G15: =IF('OTWH 200 EV'!$F$17="Hygro B",'Hygro B'!A16,"") -> F6 et + (WC séparé) | I15: Non applicable | J15: 0
A16: Salle d'eau | B16: =IF('OTWH 200 EV'!$F$17="Hygro A",VLOOKUP('OTWH 200 EV'!$F$19,'Hygro A'!$A$3:$I$13,9,FALSE),VLOOKUP('OTWH 200 EV'!$F$19,'Hygro B'!$A$3:$I$16,9,FALSE)) -> 5-40 | C16: 40 | D16: Salle d'eau | E16: Salle d'eau
A21: Type gaine 1 | B21: Type gaine 2 | C21: Type gaine 3 | D21: Type gaine 4 | E21: Type gaine 5
A22: Souple | B22: Souple | C22: Souple | D22: Souple | E22: Souple
A23: Rigide | B23: Rigide | C23: Rigide | D23: Rigide | E23: Rigide
A25: Diam1 | B25: Diam2 | C25: Diam3 | D25: Diam4 | E25: Diam5
A26: =IF(PdC!E25>72,"",80) -> 80 | B26: =IF('OTWH 200 EV'!H61>80,"",IF(PdC!E27>72,"",80)) -> 80 | C26: =IF('OTWH 200 EV'!H65>80,"",IF(PdC!E29>72,"",80)) ->  | D26: =IF('OTWH 200 EV'!H69>80,"",IF(PdC!E31>72,"",80)) ->  | E26: =IF('OTWH 200 EV'!H73>80,"",IF(PdC!E33>72,"",80)) -> 
A27: =IF(PdC!E25>177,"",125) -> 125 | B27: =IF('OTWH 200 EV'!H61>125,"",IF(PdC!E27>177,"",125)) -> 125 | C27: =IF('OTWH 200 EV'!H65>125,"",IF(PdC!E29>177,"",125)) -> 125 | D27: =IF('OTWH 200 EV'!H69>125,"",IF(PdC!E31>177,"",125)) ->  | E27: =IF('OTWH 200 EV'!H73>125,"",IF(PdC!E33>177,"",125)) -> 125
A28: =IF(PdC!E25>289,"",160) -> 160 | B28: =IF(PdC!E27>289,"",160) -> 160 | C28: =IF(PdC!E29>289,"",160) -> 160 | D28: =IF(PdC!E31>289,"",160) -> 160 | E28: =IF(PdC!E33>289,"",160) -> 160
A29: PdC Evac Pieuvre
A30: Chapeau toiture | B30: =IF('OTWH 200 EV'!F21="Pieuvre (caisson)",ROUND(0.000218570543*PdC!E11*PdC!E11-0.00930633216*PdC!E11+0.0606408439,0),IF('OTWH 200 EV'!F21="Multipiquage",ROUND(0.000218570543*PdC!E20*PdC!E20-0.00930633216*PdC!E20+0.0606408439,0),ROUND(0.000218570543*PdC!E36*PdC!E36-0.00930633216*PdC!E36+0.0606408439,0))) -> 0
A31: Bouche murale | B31: =IF('OTWH 200 EV'!F21="Pieuvre (caisson)",ROUND(0.000328449713*PdC!E11*PdC!E11-0.00570942987*PdC!E11+0.0575367606,0),IF('OTWH 200 EV'!F21="Multipiquage",ROUND(0.000328449713*PdC!E20*PdC!E20-0.00570942987*PdC!E20+0.0575367606,0),ROUND(0.000328449713*PdC!E36*PdC!E36-0.00570942987*PdC!E36+0.0575367606,0))) -> 0
A44: Pression disponible | C44: =-0.00000003677*POWER(E40,4)+0.00001154422*POWER(E40,3)-0.000629507747*POWER(E40,2)-0.279286840456*E40+291.152612094602 -> 291.1526121

Sheet Hygro A (hidden)
A1: Type | B1: Modules d'entrées d'air | D1: Bouches d'extraction
B2: Séjour | C2: Par chambre | D2: Cuisine | E2: SbB 1 | F2: SbB 2 | G2: WC unique | H2: WC multiple | I2: Salle d'eau
A3: F1 (WC commun avec SbB) | B3: 2 x 30 | C3: Non applicable | D3: 6-40/90 | E3: ="10-40" -> 10-40 | F3: Non applicable | G3: Non applicable | H3: Non applicable | I3: ="5-40" -> 5-40
A4: F1 (WC séparé) | B4: 2 x 30 | C4: Non applicable | D4: 6-40/90 | E4: ="5-40" -> 5-40 | F4: Non applicable | G4: ="5/30" -> 5/30 | H4: ="5/30" -> 5/30 | I4: 5-40
A5: F2 (WC commun avec SdB) | B5: 22 | C5: 45 | D5: 6-40/90 | E5: 10-45 | F5: Non applicable | G5: Non applicable | H5: Non applicable | I5: 5-40
A6: F2 (WC séparé) | B6: 22 | C6: 45 | D6: 6-40/90 | E6: ="5-45" -> 5-45 | F6: Non applicable | G6: ="5/30" -> 5/30 | H6: ="5/30" -> 5/30 | I6: 5-40
A7: F3 (WC commun avec SdB) | B7: 45 | C7: 30 | D7: 10-45/135 | E7: ="10-45/45" -> 10-45/45 | F7: Non applicable | G7: Non applicable | H7: Non applicable | I7: 5-40
A8: F3 | B8: 45 | C8: 30 | D8: 10-45/135 | E8: 10-45 | F8: Non applicable | G8: 5/30 | H8: 5/30 | I8: 5-40
A9: F3 Optimisé | B9: 45 | C9: 30 | D9: 12-45/105 | E9: 10-45 | F9: Non applicable | G9: 5/30 | H9: 5/30 | I9: 5-40
A10: F4 | B10: 45 | C10: 45 | D10: 10-45/135 | E10: 10-45 | F10: Non applicable | G10: 5/30 | H10: 5/30 | I10: 5-40
A11: F5 | B11: 45 | C11: 30 | D11: 12-45/135 | E11: 10-45 | F11: Non applicable | G11: Auto 30 | H11: Auto 15 | I11: 5-40
A12: F6 | B12: 30 + 22 | C12: 22 | D12: 12-45/135 | E12: 10-45 | F12: Non applicable | G12: Auto 30 | H12: Auto 15 | I12: 5-40
A13: F7 et + | B13: 45 | C13: 22 | D13: 10-45/135 | E13: 10-45 | F13: Non applicable | G13: Auto 30 | H13: Auto 15 | I13: 5-40

Sheet Hygro B (hidden)
A1: Type | B1: Modules d'entrées d'air | D1: Bouches d'extraction
B2: Séjour | C2: Par chambre | D2: Cuisine | E2: SbB 1 | F2: SbB 2 | G2: WC unique | H2: WC multiple | I2: Salle d'eau
A3: F1 (WC commun avec SbB) | B3: 2 x 30 | C3: Non applicable | D3: 6-40/90 | E3: ="10-40" -> 10-40 | F3: Non applicable | G3: Non applicable | H3: Non applicable | I3: ="5-40" -> 5-40
A4: F1 (WC séparé) | B4: 2 x 30 | C4: Non applicable | D4: 6-40/90 | E4: ="5-40" -> 5-40 | F4: Non applicable | G4: ="5/30" -> 5/30 | H4: Non applicable | I4: 5-40
A5: F2 (WC commun avec SdB) | B5: ="6 - 45" -> 6 - 45 | C5: ="6 - 45" -> 6 - 45 | D5: 6-40/90 | E5: ="10-45" -> 10-45 | F5: Non applicable | G5: Non applicable | H5: Non applicable | I5: 5-40
A6: F2 (WC séparé) | B6: ="6 - 45" -> 6 - 45 | C6: ="6 - 45" -> 6 - 45 | D6: 6-40/90 | E6: ="5-45" -> 5-45 | F6: Non applicable | G6: ="5/30" -> 5/30 | H6: Non applicable | I6: 5-40
A7: F3 Optimisé (WC commun avec SdB) | B7: ="6 - 45 (x2)" -> 6 - 45 (x2) | C7: ="6 - 45" -> 6 - 45 | D7: 12-45/105 | E7: ="10-45/45" -> 10-45/45 | F7: Non applicable | G7: Non applicable | H7: Non applicable | I7: 5-40
A8: F3 Optimisé (WC séparé) | B8: ="6 - 45 (x2)" -> 6 - 45 (x2) | C8: 6 - 45 | D8: 12-45/105 | E8: ="10-40" -> 10-40 | F8: Non applicable | G8: ="5/30" -> 5/30 | H8: Non applicable | I8: 5-40
A9: F3 (WC commun avec SdB) | B9: ="6 - 45" -> 6 - 45 | C9: 6 - 45 | D9: 10-45/120 | E9: ="10-45/45" -> 10-45/45 | F9: Non applicable | G9: Non applicable | H9: Non applicable | I9: 5-40
A10: F3 (WC séparé) | B10: ="6 - 45" -> 6 - 45 | C10: 6 - 45 | D10: 10-45/120 | E10: ="10-40" -> 10-40 | F10: Non applicable | G10: 5/30 | H10: Non applicable | I10: 5-40
A11: F4 (WC commun avec SdB) | B11: ="6 - 45" -> 6 - 45 | C11: 6 - 45 | D11: 10-45/120 | E11: ="10-45/45" -> 10-45/45 | F11: Non applicable | G11: Non applicable | H11: Non applicable | I11: 5-40
A12: F4 (WC séparé) | B12: ="6 - 45" -> 6 - 45 | C12: 6 - 45 | D12: 10-45/120 | E12: ="10-40" -> 10-40 | F12: Non applicable | G12: 5/30 | H12: Non applicable | I12: 5-40
A13: F5 (WC commun avec SdB) | B13: ="6 - 45 (x2)" -> 6 - 45 (x2) | C13: 6 - 45 | D13: 10-45/135 | E13: 10-45/45 | F13: Non applicable | G13: Non applicable | H13: Non applicable | I13: 5-40
A14: F5 (WC séparé) | B14: ="6 - 45 (x2)" -> 6 - 45 (x2) | C14: 6 - 45 | D14: 10-45/135 | E14: ="10-40" -> 10-40 | F14: Non applicable | G14: 5/30 | H14: Non applicable | I14: 5-40
A15: F6 et + (WC commun avec SdB) | B15: ="6 - 45 (x2)" -> 6 - 45 (x2) | C15: 6 - 45 | D15: 10-45/135 | E15: 10-45/45 | F15: ="10-40" -> 10-40 | G15: Non applicable | H15: Non applicable | I15: 5-40
A16: F6 et + (WC séparé) | B16: ="6 - 45 (x2)" -> 6 - 45 (x2) | C16: 6 - 45 | D16: 10-45/135 | E16: ="10-40" -> 10-40 | F16: ="10-40" -> 10-40 | G16: 5/30 | H16: Non applicable | I16: 5-40

Sheet Feuil1 (hidden)

Sheet PdC (hidden)
A1: PdC Pieuvre
A2: Tronçon | B2: Gaine | C2: Longueur | D2: K | E2: Q | F2: D | G2: PdC Linéique | H2: Nbr coude | I2: zéta | J2: PdC sing | K2: PdC tot
A3: ='OTWH 200 EV'!C33 -> 0 | B3: ='OTWH 200 EV'!F33 -> 0 | C3: ='OTWH 200 EV'!J33 -> 0 | D3: =IF(B3="",0,IF(B3=0,0,IF(B3="Rigide",3000000,9000000))) -> 0 | E3: =IF(OR(A3="",A3=0),0,VLOOKUP(A3,Calcul!$A$11:$C$16,3,FALSE)) -> 0 | F3: =IF(OR(A3="",A3=0),"",IF(A3="cuisine",125,80)) ->  | G3: =IF(OR(A3="",A3=0),0,D3*E3^1.9/F3^5*C3) -> 0 | H3: ='OTWH 200 EV'!L33 -> 0 | I3: =IF(B3="Rigide",0.29,1.22) -> 1.22 | J3: =IF(OR(A3="",A3=0),0,(H3*I3)*75000*E3^2/F3^4) -> 0 | K3: =G3+J3 -> 0 | L3: =A3 -> 0
A4: ='OTWH 200 EV'!C35 -> 0 | B4: ='OTWH 200 EV'!F35 -> 0 | C4: ='OTWH 200 EV'!J35 -> 0 | D4: =IF(B4="",0,IF(B4=0,0,IF(B4="Rigide",3000000,9000000))) -> 0 | E4: =IF(OR(A4="",A4=0),0,VLOOKUP(A4,Calcul!$A$11:$C$16,3,FALSE)) -> 0 | F4: =IF(OR(A4="",A4=0),"",IF(A4="cuisine",125,80)) ->  | G4: =IF(OR(A4="",A4=0),0,D4*E4^1.9/F4^5*C4) -> 0 | H4: ='OTWH 200 EV'!L35 -> 0 | I4: =IF(B4="Rigide",0.29,1.22) -> 1.22 | J4: =IF(OR(A4="",A4=0),0,(H4*I4)*75000*E4^2/F4^4) -> 0 | K4: =G4+J4 -> 0 | L4: =A4 -> 0 | N4: PdC aval ballon
A5: ='OTWH 200 EV'!C37 ->  | B5: ='OTWH 200 EV'!F37 -> 0 | C5: ='OTWH 200 EV'!J37 -> 0 | D5: =IF(B5="",0,IF(B5=0,0,IF(B5="Rigide",3000000,9000000))) -> 0 | E5: =IF(OR(A5="",A5=0),0,VLOOKUP(A5,Calcul!$A$11:$C$16,3,FALSE)) -> 0 | F5: =IF(OR(A5="",A5=0),"",IF(A5="cuisine",125,80)) ->  | G5: =IF(OR(A5="",A5=0),0,D5*E5^1.9/F5^5*C5) -> 0 | H5: ='OTWH 200 EV'!L37 -> 0 | I5: 1.22 | J5: =IF(OR(A5="",A5=0),0,(H5*I5)*75000*E5^2/F5^4) -> 0 | K5: =G5+J5 -> 0 | L5: =A5 ->  | N5: =IF('OTWH 200 EV'!F21="Linéaire",PdC!M36,IF('OTWH 200 EV'!F21="Multipiquage",PdC!K20,PdC!K11)) -> 0
A6: ='OTWH 200 EV'!C39 ->  | B6: ='OTWH 200 EV'!F39 -> Souple | C6: ='OTWH 200 EV'!J39 -> 0 | D6: =IF(B6="",0,IF(B6=0,0,IF(B6="Rigide",3000000,9000000))) -> 9000000 | E6: =IF(OR(A6="",A6=0),0,VLOOKUP(A6,Calcul!$A$11:$C$16,3,FALSE)) -> 0 | F6: =IF(OR(A6="",A6=0),"",IF(A6="cuisine",125,80)) ->  | G6: =IF(OR(A6="",A6=0),0,D6*E6^1.9/F6^5*C6) -> 0 | H6: ='OTWH 200 EV'!L39 -> 0 | I6: 1.22 | J6: =IF(OR(A6="",A6=0),0,(H6*I6)*75000*E6^2/F6^4) -> 0 | K6: =G6+J6 -> 0 | L6: =A6 -> 
A7: ='OTWH 200 EV'!C41 -> 0 | B7: ='OTWH 200 EV'!F41 -> 0 | C7: ='OTWH 200 EV'!J41 -> 0 | D7: =IF(B7="",0,IF(B7=0,0,IF(B7="Rigide",3000000,9000000))) -> 0 | E7: =IF(OR(A7="",A7=0),0,VLOOKUP(A7,Calcul!$A$11:$C$16,3,FALSE)) -> 0 | F7: =IF(OR(A7="",A7=0),"",IF(A7="cuisine",125,80)) ->  | G7: =IF(OR(A7="",A7=0),0,D7*E7^1.9/F7^5*C7) -> 0 | H7: ='OTWH 200 EV'!L41 -> 0 | I7: 1.22 | J7: =IF(OR(A7="",A7=0),0,(H7*I7)*75000*E7^2/F7^4) -> 0 | K7: =G7+J7 -> 0 | L7: =A7 -> 0
K8: =MAX(K3:K7) -> 0 | L8: =VLOOKUP(K8,K3:L7,2,FALSE) -> 0
A9: Aval caisson | B9: ='OTWH 200 EV'!F92 -> Rigide | C9: ='OTWH 200 EV'!J92 -> 8 | D9: =IF(B9="Rigide",3000000,9000000) -> 3000000 | E9: =SUM(E3:E7) -> 0 | F9: ='OTWH 200 EV'!H92 -> 160 | G9: =D9*E9^1.9/F9^5*C9 -> 0 | H9: ='OTWH 200 EV'!L92 -> 1 | I9: =IF(B9="Rigide",0.35,1.28) -> 0.35 | J9: =(H9*I9)*75000*E9^2/F9^4 -> 0 | K9: =G9+J9 -> 0
A11: Aval ballon | B11: ='OTWH 200 EV'!F102 -> 0 | C11: ='OTWH 200 EV'!J102 -> 0 | D11: =IF(B11="Rigide",3000000,9000000) -> 9000000 | E11: =E9 -> 0 | F11: ='OTWH 200 EV'!H102 -> 160 | G11: =D11*E11^1.9/F11^5*C11 -> 0 | H11: ='OTWH 200 EV'!L102 -> 0 | I11: 1.22 | J11: =(H11*I11)*75000*E11^2/F11^4 -> 0 | K11: =G11+J11 -> 0
K12: =-0.00000003677*POWER(E11,4)+0.00001154422*POWER(E11,3)-0.000629507747*POWER(E11,2)-0.279286840456*E11+291.152612094602 -> 291.1526121
N13: =IF('OTWH 200 EV'!F21="Pieuvre (caisson)",PdC!L8,IF('OTWH 200 EV'!F21="Multipiquage",PdC!L19,IF('OTWH 200 EV'!F21="Linéaire",O35,""))) -> 0
A14: PdC Multipiquage
A15: Tronçon | B15: Gaine | C15: Longueur | D15: K | E15: Q | F15: D | G15: PdC Linéique | H15: Nbr coude | I15: zéta | J15: PdC sing | K15: PdC tot
A16: ='OTWH 200 EV'!C33 -> 0 | B16: ='OTWH 200 EV'!F33 -> 0 | C16: ='OTWH 200 EV'!J33 -> 0 | D16: =IF(B16="Rigide",3000000,9000000) -> 9000000 | E16: =IF(OR(A16="",A16=0),0,VLOOKUP(A16,Calcul!$A$11:$C$16,3,FALSE)) -> 0 | F16: =IF(OR(A16="",A16=0),"",IF(A16="cuisine",125,80)) ->  | G16: =IF(OR(A16="",A16=0),0,D16*E16^1.9/F16^5*C16) -> 0 | H16: ='OTWH 200 EV'!L33 -> 0 | I16: =IF(B16="Rigide",0.29,1.22) -> 1.22 | J16: =IF(OR(A16="",A16=0),0,IF(F16=125,((H16*I16)+0.06)*75000*E16^2/F16^4,(H16*I16)*75000*E16^2/F16^4)) -> 0 | K16: =G16+J16 -> 0 | L16: =A16 -> 0
A17: ='OTWH 200 EV'!C35 -> 0 | B17: ='OTWH 200 EV'!F35 -> 0 | C17: ='OTWH 200 EV'!J35 -> 0 | D17: =IF(B17="Rigide",3000000,9000000) -> 9000000 | E17: =IF(OR(A17="",A17=0),0,VLOOKUP(A17,Calcul!$A$11:$C$16,3,FALSE)) -> 0 | F17: =IF(OR(A17="",A17=0),"",IF(A17="cuisine",125,80)) ->  | G17: =IF(OR(A17="",A17=0),0,D17*E17^1.9/F17^5*C17) -> 0 | H17: ='OTWH 200 EV'!L35 -> 0 | I17: =IF(B17="Rigide",0.29,1.22) -> 1.22 | J17: =IF(OR(A17="",A17=0),0,IF(F17=125,((H17*I17)+0.06)*75000*E17^2/F17^4,(H17*I17)*75000*E17^2/F17^4)) -> 0 | K17: =G17+J17 -> 0 | L17: =A17 -> 0
A18: ='OTWH 200 EV'!C37 ->  | B18: ='OTWH 200 EV'!F37 -> 0 | C18: ='OTWH 200 EV'!J37 -> 0 | D18: =IF(B18="Rigide",3000000,9000000) -> 9000000 | E18: =IF(OR(A18="",A18=0),0,VLOOKUP(A18,Calcul!$A$11:$C$16,3,FALSE)) -> 0 | F18: =IF(OR(A18="",A18=0),"",IF(A18="cuisine",125,80)) ->  | G18: =IF(OR(A18="",A18=0),0,D18*E18^1.9/F18^5*C18) -> 0 | H18: ='OTWH 200 EV'!L37 -> 0 | I18: =IF(B18="Rigide",0.29,1.22) -> 1.22 | J18: =IF(OR(A18="",A18=0),0,IF(F18=125,((H18*I18)+0.06)*75000*E18^2/F18^4,(H18*I18)*75000*E18^2/F18^4)) -> 0 | K18: =G18+J18 -> 0 | L18: =A18 -> 
K19: =MAX(K16:K18) -> 0 | L19: =VLOOKUP(K19,K16:L18,2,FALSE) -> 0
A20: Aval ballon | B20: ='OTWH 200 EV'!F102 -> 0 | C20: ='OTWH 200 EV'!J102 -> 0 | D20: =IF(B20="Rigide",3000000,9000000) -> 9000000 | E20: =SUM(E16:E18) -> 0 | F20: ='OTWH 200 EV'!H102 -> 160 | G20: =D20*E20^1.9/F20^5*C20 -> 0 | H20: ='OTWH 200 EV'!L102 -> 0 | I20: =IF(B20="Rigide",0.29,1.22) -> 1.22 | J20: =(H20*I20)*75000*E20^2/F20^4 -> 0 | K20: =G20+J20 -> 0
K21: =-0.00000003677*POWER(E20,4)+0.00001154422*POWER(E20,3)-0.000629507747*POWER(E20,2)-0.279286840456*E20+291.152612094602 -> 291.1526121
A23: PdC Linéaire
A24: Tronçon | B24: Gaine | C24: Longueur | D24: K | E24: Q | F24: D | G24: PdC Linéique | H24: Nbr coude | I24: Nbr tés | J24: Réductions | K24: zéta | L24: PdC sing | M24: PdC tot
A25: ='OTWH 200 EV'!C61 -> WC unique | B25: ='OTWH 200 EV'!F61 -> Rigide | C25: ='OTWH 200 EV'!J61 -> 3 | D25: =IF(B25="",0,IF(B25=0,0,IF(B25="Rigide",3000000,9000000))) -> 3000000 | E25: =IF(OR(A25="",A25=0),0,VLOOKUP(A25,Calcul!$A$11:$C$16,3,FALSE)) -> 0 | F25: ='OTWH 200 EV'!H61 -> 80 | G25: =IF(OR(A25="",A25=0,F25=0,F25=""),0,D25*E25^1.9/F25^5*C25) -> 0 | H25: ='OTWH 200 EV'!L61 -> 1 | I25: 0 | J25: =IF(F27>F25,1,0) -> 0 | K25: =IF(B25="Rigide",H25*0.29,H25*1.22)+0.06*J25 -> 0.29 | L25: =IF(OR(A25="",A25=0,F25=0,F25=""),0,K25*75000*E25^2/F25^4) -> 0 | M25: =G25+L25 -> 0 | N25: =M25+M26+M27+M29+M31+M33 -> 5.139951448 | O25: =A25 -> WC unique
B26: ='OTWH 200 EV'!F63 -> 0 | C26: ='OTWH 200 EV'!J63 -> 0 | D26: 0 | E26: =IF(OR(A25="",A25=0),0,VLOOKUP(A25,Calcul!$A$11:$C$16,3,FALSE)) -> 0 | F26: =IF(OR(A25="",A25=0),"",IF(A25="cuisine",125,80)) -> 80 | G26: =IF(OR(A25="",A25=0,F26=0,F26=""),0,D26*E26^1.9/F26^5*C26) -> 0 | H26: ='OTWH 200 EV'!L63 -> 0 | I26: 0 | J26: =IF(F26<F25,1,0) -> 0 | K26: 0 | L26: =IF(OR(A25="",A25=0,F26=0,F26=""),0,(K26*75000*E26^2/F26^4)+L40) -> 0 | M26: 0
A27: ='OTWH 200 EV'!C65 -> Salle de bain | B27: ='OTWH 200 EV'!F65 -> Rigide | C27: ='OTWH 200 EV'!J65 -> 2 | D27: 3000000 | E27: =IF(OR(A27="",A27=0),0+E25,VLOOKUP(A27,Calcul!$A$11:$C$16,3,FALSE)+E25) -> 40 | F27: ='OTWH 200 EV'!H65 -> 80 | G27: =IF(OR(A27="",A27=0,F27=0,F27=""),0,D27*E27^1.9/F27^5*C27) -> 2.025887379 | H27: ='OTWH 200 EV'!L65 -> 0 | I27: 0 | J27: =IF(F29>F27,1,0) -> 1 | K27: 0.06 | L27: =IF(OR(A27="",A27=0,F27=0,F27=""),0,K27*75000*E27^2/F27^4) -> 0.17578125 | M27: 2.201668629 | N27: =M33+M31+M29+M28+M27 -> 18.06503841 | O27: =A27 -> Salle de bain
B28: ='OTWH 200 EV'!F67 -> Souple | C28: ='OTWH 200 EV'!J67 -> 3 | D28: 9000000 | E28: =IF(OR(A27="",A27=0),0,VLOOKUP(A27,Calcul!$A$11:$C$16,3,FALSE)) -> 40 | F28: =IF(OR(A27="",A27=0),"",IF(A27="cuisine",125,80)) -> 80 | G28: =IF(OR(A27="",A27=0,F28=0,F28=""),0,D28*E28^1.9/F28^5*C28) -> 9.116493207 | H28: ='OTWH 200 EV'!L67 -> 0 | I28: =IF(OR(A27="",A27=0),0,1) -> 1 | J28: =IF(AND(F28=80,F27=160),1,0) -> 0 | K28: 0 | L28: =IF(OR(A27="",A27=0,F28=0,F28=""),0,(K28*75000*E28^2/F28^4)+L41) -> 3.80859375 | M28: 12.92508696
A29: ='OTWH 200 EV'!C69 -> Cuisine | B29: ='OTWH 200 EV'!F69 -> Rigide | C29: ='OTWH 200 EV'!J69 -> 8 | D29: 3000000 | E29: =IF(OR(A29="",A29=0),0+E27,VLOOKUP(A29,Calcul!$A$11:$C$16,3,FALSE)+E27) -> 130 | F29: ='OTWH 200 EV'!H69 -> 160 | G29: =IF(OR(A29="",A29=0,F29=0,F29=""),0,D29*E29^1.9/F29^5*C29) -> 2.37740788 | H29: ='OTWH 200 EV'!L69 -> 1 | I29: 0 | J29: =IF(F31>F29,1,0) -> 0 | K29: 0.29 | L29: =IF(OR(A29="",A29=0,F29=0,F29=""),0,K29*75000*E29^2/F29^4) -> 0.560874939 | M29: 2.938282819 | N29: =M33+M31+M30+M29 -> 5.666532642 | O29: =A29 -> Cuisine
B30: ='OTWH 200 EV'!F71 -> Souple | C30: ='OTWH 200 EV'!J71 -> 1 | D30: 9000000 | E30: =IF(OR(A29="",A29=0),0,VLOOKUP(A29,Calcul!$A$11:$C$16,3,FALSE)) -> 90 | F30: =IF(OR(A29="",A29=0),"",IF(A29="cuisine",125,80)) -> 125 | G30: =IF(OR(A29="",A29=0,F30=0,F30=""),0,D30*E30^1.9/F30^5*C30) -> 1.523186957 | H30: ='OTWH 200 EV'!L71 -> 0 | I30: =IF(OR(A29="",A29=0),0,1) -> 1 | J30: =IF(AND(F30=80,F29=160),1,0) -> 0 | K30: 0 | L30: =IF(OR(A29="",A29=0,F30=0,F30=""),0,(K30*75000*E30^2/F30^4)+L42) -> 1.205062866 | M30: 2.728249824
A31: ='OTWH 200 EV'!C73 -> 0 | B31: ='OTWH 200 EV'!F73 -> 0 | C31: ='OTWH 200 EV'!J73 -> 0 | D31: 0 | E31: =IF(OR(A31="",A31=0),0+E29,VLOOKUP(A31,Calcul!$A$11:$C$16,3,FALSE)+E29) -> 130 | F31: ='OTWH 200 EV'!H73 -> 0 | G31: =IF(OR(A31="",A31=0),0,D31*E31^1.9/F31^5*C31) -> 0 | H31: ='OTWH 200 EV'!L73 -> 0 | I31: 0 | J31: =IF(F33>F31,1,0) -> 0 | K31: 0 | L31: =IF(OR(A31="",A31=0,F31=0,F31=""),0,K31*75000*E31^2/F31^4) -> 0 | M31: 0 | N31: =M33+M32+M31 -> 0 | O31: =A31 -> 0
B32: ='OTWH 200 EV'!F75 -> 0 | C32: ='OTWH 200 EV'!J75 -> 0 | D32: 0 | E32: =IF(OR(A31="",A31=0),0,VLOOKUP(A31,Calcul!$A$11:$C$16,3,FALSE)) -> 0 | F32: =IF(OR(A31="",A31=0),"",IF(A31="cuisine",125,80)) ->  | G32: =IF(OR(A31="",A31=0),0,D32*E32^1.9/F32^5*C32) -> 0 | H32: ='OTWH 200 EV'!L75 -> 0 | I32: =IF(OR(A31="",A31=0),0,1) -> 0 | J32: =IF(AND(F32=80,F31=160),1,0) -> 0 | K32: 0 | L32: =IF(OR(A31="",A31=0,F32=0,F32=""),0,(K32*75000*E32^2/F32^4)+L43) -> 0 | M32: 0
A33: ='OTWH 200 EV'!C77 -> 0 | B33: ='OTWH 200 EV'!F77 -> 0 | C33: ='OTWH 200 EV'!J77 -> 0 | D33: 0 | E33: =IF(OR(A33="",A33=0),0+E31,VLOOKUP(A33,Calcul!$A$11:$C$16,3,FALSE)+E31) -> 130 | F33: ='OTWH 200 EV'!H77 -> 0 | G33: =IF(OR(A33="",A33=0),0,D33*E33^1.9/F33^5*C33) -> 0 | H33: ='OTWH 200 EV'!L77 -> 0 | I33: 0 | J33: 0 | K33: 0 | L33: =IF(OR(A33="",A33=0,F33=0,F33=""),0,K33*75000*E33^2/F33^4) -> 0 | M33: 0 | N33: =M34+M33 -> 0 | O33: =A33 -> 0
B34: ='OTWH 200 EV'!F79 -> 0 | C34: ='OTWH 200 EV'!J79 -> 0 | D34: 0 | E34: =IF(OR(A33="",A33=0),0,VLOOKUP(A33,Calcul!$A$11:$C$16,3,FALSE)) -> 0 | F34: =IF(OR(A33="",A33=0),"",IF(A33="cuisine",125,80)) ->  | G34: =IF(OR(A33="",A33=0),0,D34*E34^1.9/F34^5*C34) -> 0 | H34: ='OTWH 200 EV'!L79 -> 0 | I34: =IF(OR(A33="",A33=0),0,1) -> 0 | J34: =IF(AND(F34=80,F33=160),1,0) -> 0 | K34: 0 | L34: =IF(OR(A33="",A33=0,F34=0,F34=""),0,(K34*75000*E34^2/F34^4)+L44) -> 0 | M34: 0
M35: =SUM(M25:M34)+L46 -> 20.79328823 | N35: =MAX(N25:N34) -> 18.06503841 | O35: =IF(N35=0,"-",VLOOKUP(N35,N25:O34,2,FALSE)) -> Salle de bain
A36: Aval ballon | B36: ='OTWH 200 EV'!F102 -> 0 | C36: ='OTWH 200 EV'!J102 -> 0 | D36: =IF(B36="",0,IF(B36=0,0,IF(B36="Rigide",3000000,9000000))) -> 0 | E36: =E33 -> 130 | F36: ='OTWH 200 EV'!H102 -> 160 | G36: =D36*E36^1.9/F36^5*C36 -> 0 | H36: ='OTWH 200 EV'!L102 -> 0 | K36: =IF(OR(B36=0,B36=""),0,IF(B36="Rigide",0.29,1.22)) -> 0 | L36: =(H36*K36)*75000*E36^2/F36^4 -> 0 | M36: =G36+L36 -> 0
M37: =-0.00000003677*POWER(E36,4)+0.00001154422*POWER(E36,3)-0.000629507747*POWER(E36,2)-0.279286840456*E36+291.152612094602 -> 259.0674136
I39: zéta té | J39: Q | K39: D | L39: PdC
A40: =IF('OTWH 200 EV'!F21="Multipiquage",IF('OTWH 200 EV'!N112<PdC!K21,CONCATENATE("Configuration conforme (valeur limite : ",ROUND(K21,1)," Pa)"),CONCATENATE("Configuration non conforme (valeur limite : ",ROUND(K21,1)," Pa)")),IF('OTWH 200 EV'!F21="Pieuvre (caisson)",IF('OTWH 200 EV'!N112<PdC!K12,CONCATENATE("Configuration conforme (valeur limite : ",ROUND(K12,1)," Pa)"),CONCATENATE("Configuration non conforme (valeur limite : ",ROUND(K12,1)," Pa)")),IF('OTWH 200 EV'!F21="Linéaire",IF('OTWH 200 EV'!N112<PdC!M37,CONCATENATE("Configuration conforme (valeur limite : ",ROUND(M37,1)," Pa)"),CONCATENATE("Configuration non conforme (valeur limite : ",ROUND(M37,1)," Pa)"))))) -> Configuration non conforme (valeur limite : 291,2 Pa) | H40: =A25 -> WC unique | I40: =I26*1.3 -> 0 | J40: =E26 -> 0 | K40: =F25 -> 80 | L40: =I40*75000*J40^2/K40^4 -> 0
H41: =A27 -> Salle de bain | I41: =I28*1.3 -> 1.3 | J41: =E28 -> 40 | K41: =F27 -> 80 | L41: =I41*75000*J41^2/K41^4 -> 3.80859375
A42: =IF('OTWH 200 EV'!F21="Multipiquage",IF('OTWH 200 EV'!N112<PdC!K21,"Configuration conforme","Configuration non conforme"),IF('OTWH 200 EV'!F21="Pieuvre (caisson)",IF('OTWH 200 EV'!N112<PdC!K12,"Configuration conforme","Configuration non conforme"),IF('OTWH 200 EV'!F21="Linéaire",IF('OTWH 200 EV'!N112<PdC!M37,"Configuration conforme","Configuration non conforme")))) -> Configuration non conforme | H42: =A29 -> Cuisine | I42: =I30*1.3 -> 1.3 | J42: =E30 -> 90 | K42: =F29 -> 160 | L42: =I42*75000*J42^2/K42^4 -> 1.205062866
H43: =A31 -> 0 | I43: =I32*1.3 -> 0 | J43: =E32 -> 0 | K43: =F31 -> 0 | L43: =IF(OR(H43=0,H43=""),0,I43*75000*J43^2/K43^4) -> 0
H44: =A33 -> 0 | I44: =I34*1.3 -> 0 | J44: =E34 -> 0 | K44: =F33 -> 0 | L44: =IF(OR(H44=0,H44=""),0,I44*75000*J44^2/K44^4) -> 0
G46: réduction TWH | H46: =IF(OR(F25=160,F27=160,F29=160,F31=160,F33=160),0,1) -> 0 | I46: =H46*0.06 -> 0 | J46: =E33 -> 130 | K46: 125 | L46: =I46*75000*J46^2/K46^4 -> 0

Sheet Images (hidden)
